bitfinex/quotes_ETHUSD_20250810
["timestamp","ask_amount","ask_price","bid_price","bid_amount"]
[1754812102668,0.5698,4191.5,4191.3,2.38588501]
[1754812102876,0.1192,4191.5,4191.4,2.38583766]
[1754812103070,0.1192,4191.5,4191.4,0.4665]
[1754812103279,0.5698,4191.5,4191.1,2.38600844]
[1754812103586,0.5698,4191.5,4190.9,0.1192]
[1754812103877,0.1192,4191.5,4191.4,2.38583766]
[1754812104173,0.002,4191.8,4191.7,2.38566691]
[1754812105088,0.002,4191.8,4191.7,2.85216691]
[1754812106070,0.002,4191.8,4191.7,2.97136691]
[1754812107374,0.002,4191.8,4191.7,5.97136691]
[1754812107578,0.002,4191.8,4191.7,6.38384968]
[1754812108895,0.002,4191.8,4191.7,5.50486691]
[1754812109206,0.4526,4191.8,4191.6,2.38571218]
[1754812109407,0.4506,4191.7,4191.6,2.38571218]
[1754812109581,0.4506,4191.7,4191.3,0.1192]
[1754812109775,0.002,4191.8,4191.7,2.38566691]
[1754812110177,0.4526,4191.8,4191.7,2.38566691]
[1754812110395,0.002,4191.8,4191.7,2.38566691]
[1754812110795,0.002,4191.8,4191.6,2.50491199]
[1754812110983,0.002,4191.8,4191.7,2.38566691]
[1754812112408,0.4526,4191.8,4191.4,0.1192]
[1754812112651,0.4526,4191.8,4190.9,0.1192]
[1754812112652,0.1192,4191.5,4190.9,0.1192]
[1754812112852,0.5698,4191.5,4190.9,0.1192]
[1754812113054,0.002,4191.8,4191.0,0.4665]
[1754812113238,0.002,4191.8,4191.1,2.012]
[1754812113436,0.4506,4191.7,4191.6,2.38572382]
[1754812114853,0.4506,4191.7,4191.1,3.0]
[1754812115027,0.002,4191.8,4191.6,2.38572382]
[1754812115468,0.002,4191.8,4191.7,2.38566691]
[1754812115638,0.4506,4191.7,4191.6,2.38570799]
[1754812115846,0.4506,4191.7,4190.7,2.011]
[1754812116028,10.78489449,4191.7,4190.3,0.001]
[1754812116230,2.38624333,4190.7,4190.3,0.001]
[1754812116434,0.02759343,4190.6,4190.3,0.001]
[1754812116646,0.4506,4190.6,4190.3,0.001]
[1754812116840,2.38624847,4190.7,4190.3,0.001]
[1754812117172,0.23862485,4190.6,4190.5,2.38635007]
[1754812117331,0.4506,4191.0,4190.5,2.38635007]
[1754812117762,0.4506,4190.9,4190.5,2.38635007]
[1754812117975,0.4506,4190.8,4190.3,2.85394795]
[1754812118277,0.47819343,4190.7,4190.3,2.38745051]
[1754812118442,0.4506,4190.6,4190.3,0.001]
[1754812118649,0.4506,4190.6,4190.3,2.38746093]
[1754812118976,2.38589555,4191.3,4190.4,0.4665]
[1754812118977,0.4506,4191.3,4190.4,0.4665]
[1754812119273,0.718362,4191.8,4190.9,2.3861169]
[1754812119274,2.01,4191.4,4190.9,2.3861169]
[1754812119476,2.01,4191.4,4190.4,2.01]
[1754812119628,2.4606,4191.4,4190.3,0.001]
[1754812119833,2.4606,4191.4,4190.4,2.38636133]
[1754812119834,0.67919343,4191.3,4190.4,2.38636133]
[1754812120127,0.4506,4191.2,4190.3,0.001]
[1754812120240,2.38628041,4190.7,4190.3,0.001]
[1754812120449,0.23862804,4190.6,4190.3,0.001]
[1754812120650,2.62492918,4190.6,4190.3,0.001]
[1754812120966,0.4506,4190.5,4190.3,0.001]
[1754812121472,0.4506,4190.4,4190.3,0.001]
[1754812122944,2.009,4190.7,4190.3,0.001]
[1754812123149,0.1192,4190.4,4190.3,0.001]
[1754812123561,0.1192,4190.4,4190.3,0.4675]
[1754812123885,0.1192,4190.4,4190.3,2.85396397]
[1754812124387,0.1192,4190.4,4190.3,0.001]
[1754812124388,0.4506,4190.4,4190.3,0.001]
[1754812124551,3.08296702,4190.4,4190.3,0.001]
[1754812124756,3.11056045,4190.4,4190.3,0.001]
[1754812124978,3.11256045,4190.4,4190.3,0.001]
[1754812125363,3.11056045,4190.4,4190.3,0.001]
[1754812125848,3.08296702,4190.4,4190.3,0.001]
[1754812128189,5.10616702,4190.4,4190.3,0.001]
[1754812128660,2.63236702,4190.4,4190.3,0.001]
[1754812128869,2.007,4190.4,4190.3,0.001]
[1754812129070,2.007,4190.6,4190.3,0.4903]
[1754812129256,2.38612231,4190.9,4190.3,0.4903]
[1754812129257,2.007,4190.7,4190.3,0.001]
[1754812129594,2.007,4190.7,4190.3,2.87676251]
[1754812129755,2.007,4190.7,4190.3,2.38746251]
[1754812129963,2.007,4190.7,4190.4,0.4893]
[1754812130291,2.007,4190.7,4190.5,0.4893]
[1754812130492,2.007,4190.7,4190.6,0.4893]
[1754812130794,2.007,4190.7,4190.6,2.87559313]
[1754812131796,2.007,4190.7,4190.6,0.4893]
[1754812132387,2.007,4190.7,4190.6,3.16325665]
[1754812133493,2.007,4190.7,4190.6,0.77696352]
[1754812133670,2.007,4190.7,4190.6,0.4893]
[1754812133870,2.007,4190.7,4190.4,2.38639421]
[1754812134070,2.007,4190.7,4190.5,0.4893]
[1754812134282,2.007,4190.7,4190.6,0.4893]
[1754812134681,2.007,4190.7,4190.6,2.87559313]
[1754812136273,0.4658,4191.5,4190.9,2.38611361]
[1754812136473,2.004,4191.4,4190.7,0.4893]
[1754812136705,0.002,4191.2,4190.7,0.4893]
[1754812137004,0.4658,4191.1,4190.7,0.4893]
[1754812137302,0.4658,4191.0,4190.6,2.38627235]
[1754812137706,0.4658,4191.0,4190.7,0.4893]
[1754812137903,0.4658,4191.0,4190.7,2.87553493]
[1754812138105,0.002,4191.2,4190.6,2.38627564]
[1754812138304,0.4658,4191.1,4190.7,2.38622449]
[1754812138473,0.002,4191.2,4190.8,2.87544567]
[1754812138675,0.002,4191.2,4190.8,0.4893]
[1754812138909,0.002,4191.2,4190.9,0.4893]
[1754812139417,2.38796087,4191.2,4190.3,0.001]
[1754812139598,0.49339343,4191.1,4190.4,2.38640702]
[1754812139801,0.002,4191.2,4190.5,0.4893]
[1754812140175,0.002,4191.2,4190.7,2.38621616]
[1754812140383,2.005,4191.2,4191.0,2.38605978]
[1754812140588,2.005,4191.2,4191.1,2.87530844]
[1754812140972,2.005,4191.2,4191.1,2.89916852]
[1754812140973,0.002,4191.2,4191.1,2.89916852]
[1754812141178,0.002,4191.2,4191.1,2.87530844]
[1754812141399,0.002,4191.2,4191.1,0.4893]
[1754812141601,0.002,4191.2,4190.7,0.28755162]
[1754812141810,0.002,4191.2,4191.1,0.4893]
[1754812142106,0.002,4191.2,4191.1,6.31774713]
[1754812142307,0.002,4191.2,4191.1,6.16284713]
[1754812142690,0.002,4191.2,4191.1,5.87530844]
[1754812143090,0.4678,4191.2,4190.6,0.4893]
[1754812143315,0.4678,4191.2,4190.8,2.38617656]
[1754812143615,0.4658,4191.1,4190.7,2.38622055]
[1754812143799,0.4658,4191.1,4190.4,2.87565556]
[1754812143800,0.4658,4191.1,4190.8,2.38617125]
[1754812144006,0.4658,4191.1,4190.9,2.3860798]
[1754812144400,0.002,4191.2,4191.0,2.38604717]
[1754812144811,0.002,4191.2,4191.0,0.4893]
[1754812145001,0.002,4191.2,4191.1,0.4893]
[1754812145328,0.002,4191.2,4191.1,2.87530844]
[1754812146303,0.002,4191.2,4191.1,2.99450844]
[1754812146706,0.002,4191.2,4191.1,3.53256803]
[1754812147826,0.002,4191.2,4191.1,6.53256803]
[1754812148029,0.002,4191.2,4191.1,5.99450844]
[1754812149537,0.002,4191.2,4191.1,5.50520844]
[1754812149706,0.002,4191.2,4191.1,5.99450844]
[1754812149907,0.4678,4191.2,4191.1,5.50520844]
[1754812150206,0.002,4191.2,4191.1,5.50520844]
[1754812150622,0.002,4191.2,4191.1,5.99450844]
[1754812151132,0.002,4191.2,4191.1,5.50520844]
[1754812151705,0.002,4191.2,4191.1,5.99450844]
[1754812157038,0.002,4191.2,4191.1,7.99050844]
[1754812157937,0.002,4191.2,4191.1,7.94050844]
[1754812158101,0.002,4191.2,4191.1,5.94450844]
[1754812158306,0.002,4191.2,4191.1,7.93950844]
[1754812159842,0.4737,4191.2,4191.1,5.45520844]
[1754812160507,0.002,4191.2,4191.1,5.45520844]
[1754812161201,0.4737,4191.2,4191.1,5.45520844]
[1754812162040,0.4737,4191.2,4191.1,0.1192]
[1754812162206,0.4737,4191.2,4190.7,2.50540185]
[1754812162402,0.4737,4191.2,4190.8,2.38617924]
[1754812162608,0.77156878,4191.2,4190.8,2.38617924]
[1754812162804,0.77156878,4191.2,4190.9,2.3861203]
[1754812163106,0.4717,4191.1,4190.8,2.38612868]
[1754812163307,0.4717,4191.0,4190.8,2.38612868]
[1754812163561,2.85784644,4190.9,4190.7,0.1192]
[1754812163705,2.85784644,4190.9,4190.3,0.001]
[1754812163706,0.75748464,4190.8,4190.3,0.001]
[1754812164060,0.1192,4190.6,4190.3,0.001]
[1754812164410,0.4717,4190.5,4190.3,0.001]
[1754812165038,0.1192,4190.6,4190.3,0.001]
[1754812165039,0.4717,4190.4,4190.3,0.001]
[1754812165410,2.86010702,4190.4,4190.3,0.001]
[1754812165806,2.38640702,4190.4,4190.3,0.001]
[1754812166014,1.16294951,4190.4,4190.3,0.001]
[1754812166928,3.54935653,4190.4,4190.3,0.001]
[1754812167242,1.16294951,4190.4,4190.3,0.001]
[1754812167544,3.54935653,4190.4,4190.3,0.001]
[1754812168648,3.57894996,4190.4,4190.3,0.001]
[1754812169056,3.57694996,4190.4,4190.3,0.001]
[1754812170954,3.54935653,4190.4,4190.3,0.001]
[1754812171522,3.57694996,4190.4,4190.3,0.001]
[1754812171733,17.46124445,4190.4,4190.3,0.001]
[1754812171931,17.43565102,4190.4,4190.3,0.001]
[1754812174071,17.43565102,4190.4,4189.8,0.001]
[1754812174072,0.55,4189.9,4189.8,0.001]
[1754812174219,7.95428523,4189.9,4189.8,0.001]
[1754812174424,8.5195918,4189.9,4189.8,0.001]
[1754812174862,8.5175918,4189.9,4189.8,0.001]
[1754812175233,2.5809,4189.9,4189.8,0.001]
[1754812175642,2.1092,4189.9,4189.8,0.001]
[1754812176036,2.1092,4189.9,4189.8,0.5008]
[1754812176236,2.1092,4189.9,4189.8,2.88754877]
[1754812176445,1.99,4189.9,4189.8,2.88754877]
[1754812176823,1.99,4189.9,4189.8,0.5008]
[1754812177229,1.99,4189.9,4189.8,0.001]
[1754812177455,1.99,4189.9,4189.8,0.5008]
[1754812177658,1.989,4189.9,4189.8,0.5008]
[1754812177963,0.1192,4190.0,4189.9,2.3866918]
[1754812178163,0.1192,4190.0,4189.9,5.5415918]
[1754812178464,0.1192,4190.0,4189.9,6.0413918]
[1754812178679,1.989,4190.9,4190.3,2.38641273]
[1754812178965,1.989,4190.9,4190.4,0.1192]
[1754812179325,0.49929343,4190.8,4190.4,0.1192]
[1754812179522,0.1192,4190.6,4190.0,2.50578734]
[1754812179726,0.02759343,4190.5,4190.1,2.38657199]
[1754812179966,1.988,4190.4,4190.2,0.4998]
[1754812180154,1.988,4190.4,4190.2,2.38651769]
[1754812180330,1.988,4190.4,4190.3,0.4998]
[1754812180657,1.988,4190.4,4190.0,2.50580954]
[1754812180846,2.4597,4190.4,4190.0,2.50580954]
[1754812181157,2.4597,4190.4,4189.8,0.001]
[1754812181158,0.1192,4190.2,4189.8,0.001]
[1754812181334,0.1192,4189.9,4189.8,0.001]
[1754812181538,0.1192,4189.9,4189.8,0.5008]
[1754812182836,1.988,4190.4,4189.8,2.88754877]
[1754812183031,1.988,4190.4,4189.9,0.4998]
[1754812183231,2.306,4190.4,4190.3,0.001]
[1754812183552,4.69240702,4190.4,4190.3,0.001]
[1754812183944,5.71410702,4190.4,4190.3,0.001]
[1754812184872,5.16410702,4190.4,4190.3,0.001]
[1754812185959,5.71410702,4190.4,4190.3,0.001]
[1754812187162,5.16410702,4190.4,4190.3,0.001]
[1754812188354,5.71410702,4190.4,4190.3,0.001]
[1754812189550,5.04490702,4190.4,4190.3,0.001]
[1754812189752,5.16410702,4190.4,4190.3,0.001]
[1754812190580,5.71410702,4190.4,4190.3,0.001]
[1754812191247,5.16410702,4190.4,4190.3,0.001]
[1754812191476,4.69240702,4190.4,4190.3,0.001]
[1754812191679,1.984,4190.4,4190.3,0.467]
[1754812192183,1.984,4190.4,4190.3,2.85346397]
[1754812194284,1.984,4190.8,4190.7,2.38623618]
[1754812194471,1.984,4190.8,4190.7,2.85223618]
[1754812194989,1.984,4190.8,4190.7,0.466]
[1754812197156,1.984,4190.8,4190.7,2.85223618]
[1754812198586,1.984,4190.8,4190.7,3.37609458]
[1754812198787,0.002,4191.2,4191.1,2.38600844]
[1754812199170,0.002,4191.2,4191.1,2.85200844]
[1754812200397,0.002,4191.2,4191.1,3.00690844]
[1754812201098,0.002,4191.2,4191.1,2.85200844]
[1754812201659,0.002,4191.2,4191.1,3.37345281]
[1754812202109,0.002,4191.2,4191.1,3.55221289]
[1754812202599,0.002,4191.2,4191.1,6.55221289]
[1754812202762,0.002,4191.2,4191.1,8.50835281]
[1754812203381,1e-08,4191.2,4191.1,9.05835281]
[1754812203901,1e-08,4191.2,4191.1,6.52835281]
[1754812204805,1e-08,4191.2,4191.1,7.07835281]
[1754812205872,1e-08,4191.2,4191.1,9.05735281]
[1754812206363,1e-08,4191.2,4191.1,8.35145281]
[1754812207284,1e-08,4191.2,4191.1,3.37345281]
[1754812207478,1e-08,4191.2,4191.1,0.5852]
[1754812207683,1e-08,4191.2,4191.1,2.97120844]
[1754812209305,1e-08,4191.2,4191.1,5.97120844]
[1754812211073,1e-08,4191.2,4191.1,6.12610844]
[1754812211274,1e-08,4191.2,4191.1,11.00086144]
[1754812211501,1e-08,4191.2,4191.1,9.53886144]
[1754812212094,1e-08,4191.2,4191.1,10.08886144]
[1754812212410,1e-08,4191.2,4191.1,6.67610844]
[1754812212786,1e-08,4191.2,4191.1,7.94720844]
[1754812213585,1e-08,4191.2,4191.1,9.53410844]
[1754812213908,1e-08,4191.2,4191.1,5.97120844]
[1754812214113,1e-08,4191.2,4191.1,8.65110844]
[1754812215024,0.002,4191.7,4191.1,8.65110844]
[1754812215025,1e-08,4191.7,4191.6,2.38572382]
[1754812215183,1e-08,4191.7,4191.6,7.36072382]
[1754812215384,1e-08,4191.7,4191.6,7.47992382]
[1754812215588,1e-08,4191.7,4191.6,7.94592382]
[1754812216096,1e-08,4191.8,4191.7,5.38566691]
[1754812216295,1e-08,4191.8,4191.7,6.00656691]
[1754812217229,1e-08,4191.9,4191.8,2.38561]
[1754812217385,1e-08,4192.1,4192.0,2.38549618]
[1754812217586,1e-08,4192.1,4192.0,4.35949618]
[1754812217816,1e-08,4192.1,4192.0,7.83039618]
[1754812218483,1e-08,4192.1,4192.0,7.35949618]
[1754812218681,0.43840001,4192.1,4192.0,4.35849618]
[1754812219313,0.43840001,4192.1,4192.0,2.38549618]
[1754812220280,0.43840001,4192.1,4191.8,3.1192]
[1754812220518,0.43840001,4192.1,4191.9,2.38553542]
[1754812220732,0.4384,4192.0,4191.8,0.1192]
[1754812220890,0.4384,4192.0,4191.8,2.0922]
[1754812221221,1e-08,4192.1,4192.0,2.38549618]
[1754812221420,1e-08,4192.1,4192.0,5.28359895]
[1754812221631,1e-08,4192.1,4192.0,4.82839618]
[1754812222193,1e-08,4192.1,4192.0,7.94759618]
[1754812222789,1e-08,4192.1,4192.0,5.50469618]
[1754812222995,0.43840001,4192.1,4192.0,7.47669618]
[1754812223517,1e-08,4192.1,4192.0,7.94759618]
[1754812223712,1e-08,4192.1,4192.0,5.97559618]
[1754812224127,1e-08,4192.1,4192.0,7.94659618]
[1754812224705,1e-08,4192.1,4192.0,7.82739618]
[1754812225036,1e-08,4192.1,4192.0,7.94659618]
[1754812225497,1e-08,4192.3,4192.2,2.38538237]
[1754812225699,1e-08,4192.3,4192.2,4.35638237]
[1754812225910,1e-08,4192.3,4192.2,4.82728237]
[1754812226807,0.04,4192.9,4192.2,9.3089]
[1754812227012,0.04,4192.9,4192.4,3.55]
[1754812227345,0.04,4192.9,4192.8,2.38504102]
[1754812227640,0.04,4192.9,4192.8,8.02424102]
[1754812227842,0.04,4192.9,4192.8,6.52514102]
[1754812227998,0.04,4192.9,4192.8,5.50424102]
[1754812228198,0.04,4192.9,4192.8,7.47424102]
[1754812228199,0.4784,4192.9,4192.8,7.47424102]
[1754812228400,0.04,4192.9,4192.8,5.50424102]
[1754812228598,0.04,4192.9,4192.8,7.47424102]
[1754812228838,0.04,4192.9,4192.8,7.94514102]
[1754812229194,0.4384,4194.0,4192.9,5.93498413]
[1754812229433,0.042,4194.7,4193.8,2.50367231]
[1754812229635,0.1192,4194.4,4193.8,0.1192]
[1754812229944,0.4784,4193.9,4193.8,2.50367231]
[1754812230802,1e-08,4193.9,4193.8,6.18939751]
[1754812231045,1e-08,4193.9,4193.8,8.62929751]
[1754812231344,1e-08,4193.9,4193.8,6.66029751]
[1754812231915,1e-08,4193.9,4193.8,8.62829751]
[1754812232255,1e-08,4193.9,4193.8,9.17829751]
[1754812232410,1e-08,4193.9,4193.8,15.02501951]
[1754812233107,1e-08,4193.9,4193.8,9.17829751]
[1754812233324,1e-08,4193.9,4193.8,11.52431651]
[1754812233752,1e-08,4193.9,4193.8,9.17829751]
[1754812233954,1e-08,4193.9,4193.8,13.30883751]
[1754812234154,1e-08,4193.9,4193.8,9.17729751]
[1754812235012,1e-08,4193.9,4193.8,2.50367231]
[1754812235329,0.43840001,4193.9,4193.8,2.50367231]
[1754812235950,0.48040001,4193.9,4193.8,0.1192]
[1754812236840,0.48040001,4193.9,4192.9,0.001]
[1754812236841,0.48040001,4193.9,4193.3,4.35074174]
[1754812237044,0.02759343,4193.8,4193.3,0.1192]
[1754812237236,0.4804,4193.7,4193.3,0.1192]
[1754812237411,0.042,4193.6,4193.3,0.1192]
[1754812237612,0.042,4193.6,4192.9,0.001]
[1754812237613,0.50799343,4193.5,4192.9,0.001]
[1754812237821,0.40845852,4193.4,4192.9,0.001]
[1754812238028,2.41236048,4193.3,4192.9,0.001]
[1754812238227,2.41246264,4193.2,4192.9,0.001]
[1754812238459,2.38487283,4193.1,4192.9,0.001]
[1754812238760,2.86527283,4193.1,4192.9,0.001]
[1754812238965,2.38441616,4193.9,4192.9,0.001]
[1754812238966,2.89292068,4193.0,4192.9,0.001]
[1754812239140,3.42068963,4193.0,4192.9,0.001]
[1754812239938,3.3930962,4193.0,4192.9,0.001]
[1754812240222,1.00816895,4193.0,4192.9,0.001]
[1754812241153,0.4804,4193.0,4192.9,0.001]
[1754812241381,0.4384,4193.0,4192.9,0.001]
[1754812242080,0.50799343,4193.0,4192.9,0.001]
[1754812242384,0.43840001,4193.9,4192.9,0.001]
[1754812242687,0.4384,4193.4,4193.2,2.38478361]
[1754812242888,0.4384,4193.3,4193.2,2.38478361]
[1754812243589,0.4384,4193.6,4193.5,2.38461045]
[1754812243756,0.1192,4193.8,4193.5,2.38461045]
[1754812244119,0.1192,4193.8,4193.3,2.38469994]
[1754812244286,0.1192,4193.8,4193.2,0.1192]
[1754812244287,0.1192,4193.8,4193.2,2.50400026]
[1754812244466,0.4384,4193.7,4193.2,0.1192]
[1754812244657,0.1192,4193.8,4193.4,2.38465789]
[1754812244857,0.4384,4193.7,4193.2,0.1192]
[1754812245181,0.4384,4193.6,4193.5,2.38464289]
[1754812246293,0.4384,4193.6,4193.4,2.38468374]
[1754812246595,0.1192,4193.8,4193.5,2.38464289]
[1754812247190,0.4396,4193.7,4193.5,2.38464289]
[1754812247369,0.1192,4193.8,4193.6,2.38454258]
[1754812247570,1e-08,4193.9,4193.3,0.4695]
[1754812247794,0.5588,4193.8,4193.2,0.1192]
[1754812248009,0.46719343,4193.7,4193.2,2.50399597]
[1754812248305,0.46719343,4193.7,4193.2,2.50400697]
[1754812248488,0.76427701,4193.7,4193.2,0.1192]
[1754812248691,3.1488082,4193.7,4193.0,2.5040797]
[1754812248883,0.4396,4193.6,4193.0,2.5040797]
[1754812249089,0.02759343,4193.5,4193.2,2.38479531]
[1754812249284,0.02759343,4193.5,4193.0,0.1192]
[1754812249472,0.4396,4193.4,4193.1,2.38483386]
[1754812249699,0.4396,4193.4,4193.1,2.38486933]
[1754812249896,0.1192,4193.3,4193.1,2.38486933]
[1754812250298,0.4396,4193.2,4193.1,2.38486933]
[1754812250505,0.4396,4193.2,4193.0,2.38491923]
[1754812250687,0.1192,4193.3,4193.0,2.38491923]
[1754812250893,0.4396,4193.1,4193.0,2.38491923]
[1754812251212,0.4396,4193.1,4192.9,0.001]
[1754812251399,0.4396,4193.1,4192.9,2.38597992]
[1754812251817,0.4396,4193.1,4192.9,0.001]
[1754812252582,0.02759343,4193.0,4192.9,0.001]
[1754812253087,2.97132068,4193.0,4192.9,0.001]
[1754812253417,3.5531346,4193.0,4192.9,0.001]
[1754812254324,4.1031346,4193.0,4192.9,0.001]
[1754812255213,7.1031346,4193.0,4192.9,0.001]
[1754812255447,7.07554117,4193.0,4192.9,0.001]
[1754812256413,7.03354117,4193.0,4192.9,0.001]
[1754812258345,6.48354117,4193.0,4192.9,0.001]
[1754812258846,3.48354117,4193.0,4192.9,0.001]
[1754812259750,0.5588,4193.0,4192.9,0.001]
[1754812260252,2.94372725,4193.0,4192.9,0.001]
[1754812260956,0.5588,4193.0,4192.9,0.001]
[1754812261152,2.94372725,4193.0,4192.9,0.001]
[1754812261651,0.5588,4193.0,4192.9,0.001]
[1754812262337,0.1192,4193.0,4192.9,0.001]
[1754812263143,0.1192,4193.0,4192.9,0.4705]
[1754812263446,0.1192,4193.0,4192.9,2.85548413]
[1754812263865,0.00200001,4193.9,4193.6,2.38457264]
[1754812264180,0.00200001,4193.9,4193.7,2.38448917]
[1754812264342,0.00200001,4193.9,4193.4,0.1192]
[1754812264343,0.00200001,4193.9,4193.8,2.38447231]
[1754812264548,0.00200001,4193.9,4193.7,2.38451887]
[1754812264776,0.00200001,4193.9,4193.6,2.38454613]
[1754812264997,0.02959344,4193.9,4193.4,0.1192]
[1754812265285,0.1192,4193.5,4193.3,2.38474524]
[1754812265466,0.1192,4193.5,4192.9,2.50512746]
[1754812265783,0.1192,4193.5,4193.2,2.38480856]
[1754812266278,0.1192,4193.5,4193.3,2.85425316]
[1754812266449,0.1192,4193.5,4193.4,0.4695]
[1754812266984,1.958,4193.8,4193.4,0.4695]
[1754812267181,0.1192,4193.7,4193.4,0.4695]
[1754812267381,0.1192,4193.7,4193.2,2.5040085]
[1754812267570,0.1192,4193.7,4193.5,2.85414076]
[1754812267769,0.1192,4193.7,4193.5,0.4695]
[1754812267982,0.14679343,4193.7,4193.3,2.38475486]
[1754812268180,0.58639343,4193.7,4193.3,2.38475486]
[1754812268370,0.14679343,4193.7,4193.4,0.4695]
[1754812268574,0.14679343,4193.7,4193.3,2.38475486]
[1754812268774,0.14679343,4193.7,4193.5,0.4695]
[1754812270050,0.14679343,4193.7,4193.2,0.1192]
[1754812270253,0.00200001,4193.9,4193.3,0.4695]
[1754812270475,0.1192,4193.6,4193.3,0.4695]
[1754812270880,0.1192,4193.6,4193.4,0.4695]
[1754812271098,0.1192,4193.6,4193.5,0.4695]
[1754812272504,0.5588,4193.6,4193.1,0.4695]
[1754812272677,0.5588,4193.6,4193.2,0.4695]
[1754812273170,0.5588,4193.6,4193.3,0.4695]
[1754812273375,0.5588,4193.6,4193.4,0.4695]
[1754812273572,0.1192,4193.6,4193.4,0.4695]
[1754812273984,2.38646234,4193.9,4192.9,0.001]
[1754812273985,0.00200001,4193.9,4192.9,0.001]
[1754812274216,0.4396,4193.5,4193.0,0.4695]
[1754812274501,0.00200001,4193.9,4193.4,2.38468483]
[1754812274713,0.00200001,4193.9,4193.1,0.4695]
[1754812275004,0.00200001,4193.9,4193.2,2.3848135]
[1754812275303,0.00200001,4193.9,4193.3,0.02384756]
[1754812275521,0.00200001,4193.9,4193.4,0.4695]
[1754812275689,0.00200001,4193.9,4193.6,2.38454612]
[1754812275894,0.00200001,4193.9,4193.7,2.38452917]
[1754812276419,0.00200001,4193.9,4193.8,2.85397231]
[1754812277725,0.00200001,4193.9,4193.8,2.88267231]
[1754812278118,0.00200001,4193.9,4193.4,2.38464357]
[1754812278119,0.43020001,4193.9,4193.4,2.38464357]
[1754812278310,0.4282,4193.8,4193.7,2.38447842]
[1754812279619,0.4282,4193.8,4193.5,2.38464289]
[1754812279822,0.00200001,4193.9,4193.4,2.38468724]
[1754812279823,0.45579343,4193.7,4193.4,2.38468724]
[1754812280010,0.45579343,4193.7,4193.0,0.4992]
[1754812280011,0.45579343,4193.6,4193.5,2.38464289]
[1754812280216,0.4282,4193.6,4193.5,2.38464289]
[1754812281215,0.00200001,4193.9,4193.5,2.38464289]
[1754812281417,0.4282,4193.8,4193.6,2.38458603]
[1754812281628,0.00200001,4193.9,4193.0,2.38592033]
[1754812281629,0.4282,4193.7,4193.2,2.38475873]
[1754812281829,0.4282,4193.7,4193.4,2.38465975]
[1754812282030,0.4282,4193.7,4193.3,2.88295494]
[1754812282319,0.4282,4193.7,4193.6,2.38458603]
[1754812282623,0.00200001,4193.9,4193.7,2.38448295]
[1754812282822,0.4282,4193.8,4193.5,0.4982]
[1754812283149,0.45579343,4193.7,4193.3,2.38470403]
[1754812283315,0.45579343,4193.7,4193.4,2.38469929]
[1754812283511,0.4282,4193.6,4193.4,2.38469929]
[1754812283750,0.4282,4193.5,4193.0,0.001]
[1754812283921,0.1192,4193.3,4193.1,2.38487038]
[1754812284251,0.4282,4193.2,4193.0,0.001]
[1754812284453,0.4282,4193.2,4193.1,2.38487038]
[1754812284744,0.4282,4193.1,4193.0,0.001]
[1754812285445,0.4282,4193.1,4193.0,2.38592725]
[1754812286254,0.4282,4193.1,4193.0,0.001]
[1754812286979,0.4282,4193.1,4193.0,2.38592725]
[1754812287487,0.4282,4193.1,4193.0,0.001]
[1754812288185,0.75177033,4193.1,4193.0,0.001]
[1754812288346,2.88266381,4193.1,4193.0,0.001]
[1754812288846,2.84066381,4193.1,4193.0,0.001]
[1754812289354,3.39066381,4193.1,4193.0,0.001]
[1754812289564,3.43266381,4193.1,4193.0,0.001]
[1754812290467,6.43266381,4193.1,4193.0,0.001]
[1754812290668,8.3321634,4193.1,4193.0,0.001]
[1754812294852,10.2811634,4193.1,4193.0,0.001]
[1754812295072,13.88429449,4192.8,4192.7,0.001]
[1754812295290,0.55,4192.2,4191.0,0.4982]
[1754812295455,4.77476917,4192.1,4191.0,0.4982]
[1754812295893,19.08726366,4192.1,4190.5,0.1192]
[1754812296073,19.10167023,4192.1,4190.5,0.4982]
[1754812296391,19.10167023,4192.1,4190.5,2.38630958]
[1754812296576,19.10167023,4192.1,4190.3,2.38745879]
[1754812296577,19.10167023,4192.1,4190.8,0.4982]
[1754812296980,19.05967023,4192.1,4190.8,0.4982]
[1754812297382,19.05967023,4192.1,4191.7,0.001]
[1754812298088,8.72537574,4192.1,4191.7,0.001]
[1754812298806,8.82089574,4192.1,4191.7,0.001]
[1754812305007,19.15519023,4192.1,4191.7,0.001]
[1754812305327,6.87189574,4192.1,4191.7,0.001]
[1754812305544,8.81889574,4192.1,4191.7,0.001]
[1754812308351,2.93561,4191.8,4191.7,0.001]
[1754812308657,17.0259022,4191.8,4191.7,0.001]
[1754812308866,17.46540877,4191.8,4191.7,0.001]
[1754812309455,17.46540877,4191.8,4190.6,0.5048]
[1754812309456,2.93623618,4190.7,4190.6,0.04]
[1754812309654,7.90882961,4190.7,4190.6,0.04]
[1754812309820,8.46753618,4190.7,4190.6,0.04]
[1754812310129,10.58633542,4190.7,4190.6,0.04]
[1754812310766,10.00003542,4190.7,4190.6,0.5048]
[1754812310974,8.00043618,4190.7,4190.6,0.5048]
[1754812311763,8.46753618,4190.7,4190.6,0.5048]
[1754812312331,8.46753618,4190.7,4190.6,0.04]
[1754812313868,8.50953618,4190.7,4190.6,0.04]
[1754812314170,8.46753618,4190.7,4190.6,0.04]
[1754812314471,10.78457686,4190.7,4190.6,0.04]
[1754812314825,10.31747686,4190.7,4190.6,0.04]
[1754812315029,10.78457686,4190.7,4190.6,0.04]
[1754812315260,10.31747686,4190.7,4190.6,0.04]
[1754812315463,9.76747686,4190.7,4190.6,0.5048]
[1754812315630,2.0642,4190.7,4190.6,0.5048]
[1754812315835,4.45043618,4190.7,4190.6,0.5048]
[1754812316340,1.945,4190.7,4190.6,0.6597]